Cogmind - Beta 17 @@@ ROGUE MODE // 2026.07.21 @ 15:11:55 Player: Cinder Result: Destroyed by S-43 Plague with Heavy Machine Gun Performance ------------- Evolutions (9) 4500 Regions Visited (21) 4200 Robots Destroyed (67) 335 Value Destroyed (2234) 2234 Prototype IDs (30) 600 Alien Tech Used (0) 0 Bonus (4830) 4830 TOTAL SCORE: 16699 Bonus ------- High Alert Combat Kills 30 Entered DSFs 1500 Aligned with FarCom 300 Met Warlord at Base 500 MAIN.C Attacked Warlord 500 Met Warlord at Research 2000 Cogmind --------- Core Integrity 0/1600 Matter 294/300 Energy 100/100 System Corruption 15% Temperature Cool (0) Movement Core (50) Location -1/Access Parts ------- > --- POWER (3) -------- (None) > --- PROPULSION (8) --- (None) > --- UTILITY (12) ----- Advanced Melee Analysis Suite > --- WEAPON (2) ------- (None) > --- INVENTORY (5) ---- Micro Antimatter Reactor Advanced Heat Sink Superbattery (1500) Advanced Matter Compressor (400) Layered Medium Armor Plating Peak State ------------ > --- POWER ------------ Light Antimatter Reactor Light Antimatter Reactor Backup Power VII > --- PROPULSION ------- Xenon Bombardment Thruster Xenon Bombardment Thruster Xenon Bombardment Thruster Improved Surge Thruster Field Propulsion Array Q-thruster Experimental Q-thruster > --- UTILITY ---------- Advanced Heat Sink Medium Storage Unit Advanced Visual Processing Unit Advanced Melee Analysis Suite Advanced Melee Analysis Suite Advanced Melee Analysis Suite Improved Force Booster Improved Transmission Jammer ECM Suite Improved Reaction Control System Hacking Suite System Shield > --- WEAPON ----------- Scythe Scythe > --- INVENTORY -------- Xenon Bombardment Thruster Xenon Bombardment Thruster Impulse Thruster Field Propulsion Array Superbattery Advanced Matter Compressor Improved Reaction Control System Improved Propulsion Shielding Scythe [Rating: 130] Favorites ----------- Power Backup Power VII Engine Light Ion Engine Power Core Backup Power VII Reactor Light Antimatter Reactor Propulsion Improved Surge Thruster Treads Biometal Medium Treads Flight Unit Improved Surge Thruster Utility Improved Melee Analysis Suite Device Improved Reaction Control System Storage Medium Storage Unit Processor Improved Melee Analysis Suite Hackware System Shield Protection Propulsion Shielding Weapon Scythe Energy Gun Small Laser Ballistic Gun Light Assault Rifle Launcher Fusion Bomb Launcher Slashing Weapon Scythe Build | -11 -10 -10 -9 -9 -9 -8 -8 -7 -7 -6 -5 -5 -4 -4 -4 -4 -3 -3 -3 -2 -1 ------- Run | Yrd Mat Min Mat Min Exi Min Mat Fac DSF Fac Fac DSF Fac Upp Upp War Pro Res DSF Res Acc Slots Evolved 18 | . . . 2 . . . 2 2 . 2 2 . 2 . . . . 2 . 2 2 Power 2 | . . . . . . . . . . 1 . . . . . . . . . 1 . Propulsion 6 | . . . 2 . . . . . . . . . 2 . . . . 1 . . 1 Utility 10 | . . . . . . . 2 2 . 1 2 . . . . . . 1 . 1 1 Weapon . | . . . . . . . . . . . . . . . . . . . . . . Parts Attached 101 | 1 3 1 9 . . 1 5 5 4 9 4 6 4 2 . . 2 4 4 6 31 Power 15 | . . . . . . . 2 . . 3 . . 1 . . . . 1 . 1 7 Engine 7 | . . . . . . . 2 . . 2 . . 1 . . . . 1 . 1 . Core 1 | . . . . . . . . . . 1 . . . . . . . . . . . Reactor 7 | . . . . . . . . . . . . . . . . . . . . . 7 Propulsion 34 | . . . 2 . . 1 1 . 3 . . 4 1 . . . 2 . 1 1 18 Treads 1 | . . . . . . . . . . . . . . . . . . . . . 1 Leg . | . . . . . . . . . . . . . . . . . . . . . . Wheel . | . . . . . . . . . . . . . . . . . . . . . . Hover . | . . . . . . . . . . . . . . . . . . . . . . Flight 33 | . . . 2 . . 1 1 . 3 . . 4 1 . . . 2 . 1 1 17 Utility 42 | . 2 . 4 . . . 2 4 1 6 4 2 2 1 . . . 3 3 4 4 Device 16 | . 1 . 1 . . . . 2 . 1 3 1 . 1 . . . 2 . 2 2 Storage 5 | . . . 1 . . . . . 1 1 . . . . . . . 1 . 1 . Processor 14 | . 1 . 2 . . . . 1 . 3 1 1 . . . . . . 3 . 2 Hackware 5 | . . . . . . . 1 1 . 1 . . 2 . . . . . . . . Protection 2 | . . . . . . . 1 . . . . . . . . . . . . 1 . Artifact . | . . . . . . . . . . . . . . . . . . . . . . Weapon 10 | 1 1 1 3 . . . . 1 . . . . . 1 . . . . . . 2 Energy Gun 2 | . 1 1 . . . . . . . . . . . . . . . . . . . Energy Cannon . | . . . . . . . . . . . . . . . . . . . . . . Ballistic Gun 2 | 1 . . 1 . . . . . . . . . . . . . . . . . . Ballistic Cannon . | . . . . . . . . . . . . . . . . . . . . . . Launcher 1 | . . . . . . . . . . . . . . . . . . . . . 1 Special Weapon . | . . . . . . . . . . . . . . . . . . . . . . Impact Weapon . | . . . . . . . . . . . . . . . . . . . . . . Slashing Weapon 5 | . . . 2 . . . . 1 . . . . . 1 . . . . . . 1 Piercing Weapon . | . . . . . . . . . . . . . . . . . . . . . . Special Melee Weapon . | . . . . . . . . . . . . . . . . . . . . . . Unidentified Prototypes 7 | . . . . . . . 1 . . 1 1 . 1 . . . . 1 . 1 1 Parts Lost 64 | . . 2 . . . . 3 . 2 4 2 2 . . . . 2 . . . 47 Power 9 | . . . . . . . . . . . 1 . . . . . 1 . . . 7 Propulsion 29 | . . . . . . . 3 . . 2 1 1 . . . . . . . . 22 Utility 20 | . . . . . . . . . 2 2 . 1 . . . . 1 . . . 14 Weapon 6 | . . 2 . . . . . . . . . . . . . . . . . . 4 Highest Loss Streak 25 | . . 2 . . . . 3 . 2 3 2 2 . . . . 2 . . . 25 To Critical Strikes . | . . . . . . . . . . . . . . . . . . . . . . Average Backups 6 | . 3 5 6 8 8 8 7 4 5 5 5 4 5 5 5 5 5 5 7 8 7 Power . | . 1 1 . 1 1 1 . . . . 1 . . . . . . . . . . Propulsion 1 | . . . . . . . . . . . . . . . . . . . 1 2 3 Utility 3 | . 1 2 4 5 5 5 4 3 4 3 2 2 3 3 4 4 4 4 5 5 3 Weapon 1 | . 1 1 1 2 2 2 2 1 1 1 2 2 2 2 1 1 1 1 1 1 . Tool/Special . | . . . . . . . . . . . . . . . . . . . . . . Unused Backups 20 | . . 1 4 . 1 2 2 1 1 4 . . . . . . . . . 3 1 Power 3 | . . 1 1 . . 1 . . . . . . . . . . . . . . . Propulsion . | . . . . . . . . . . . . . . . . . . . . . . Utility 14 | . . . 2 . 1 1 2 . 1 3 . . . . . . . . . 3 1 Weapon 3 | . . . 1 . . . . 1 . 1 . . . . . . . . . . . Tool/Special . | . . . . . . . . . . . . . . . . . . . . . . Average Slot Usage (%) 74 | . 36 53 53 66 66 66 79 60 70 73 66 72 85 89 89 89 88 93 95 90 81 Engine 2 | . . . . . . . 7 . . 3 3 . 1 5 5 5 4 3 4 7 1 Core 2 | . . . . . . . . . . 1 . 2 5 5 5 5 5 4 4 4 2 Flight 18 | . . . 15 22 22 22 27 7 16 15 7 12 21 21 21 21 21 28 28 26 24 Device 7 | . 4 14 4 . . . . 4 4 4 4 5 7 5 5 5 5 8 9 8 14 Storage 3 | . . . 6 11 11 11 9 . 2 1 . . . . . . . 4 4 4 3 Processor 19 | . 7 14 11 11 11 11 9 11 15 27 31 36 32 31 31 31 31 23 23 21 16 Hackware 6 | . . . . . . . 8 13 9 6 5 2 5 10 10 10 10 9 9 8 7 Energy Gun 1 | . 10 13 9 . . . . . . . . . . . . . . . . . . Ballistic Gun 1 | . 14 11 3 . . . . . . . . . . . . . . . . . . Slashing Weapon 9 | . . . 3 22 22 22 18 14 12 9 11 11 10 10 10 10 10 9 9 8 6 Peak Build Rating 130 | 1 4 4 13 13 13 14 23 28 31 46 52 72 78 71 70 70 77 83 90 105 130 Average Rating 60 | . 2 3 8 13 13 13 20 22 25 37 44 54 71 70 70 70 70 75 83 94 109 On Entrance 41 | . 1 4 4 13 13 13 14 16 25 29 39 45 72 71 70 70 70 72 76 90 105 Avg Prop Armor Cover (%) 13 | . . . . . . . . . 5 . . 7 8 . . . 5 2 . . 33 Naked Turns . | . . . . . . . . . . . . . . . . . . . . . . Heaviest Build 54 | 1 3 3 9 9 9 9 14 17 13 13 9 11 12 13 13 13 13 25 25 36 54 Greatest Support 61 | 3 3 3 10 10 10 15 20 11 14 14 9 16 16 16 16 16 28 32 42 45 61 Greatest Overweight (x) 3 | . . . 1 . . . . 3 . . . 1 . . . . . 1 . . 2 Average Overweight (x) . | . . . . . . . . . . . . . . . . . . . . . . Largest Inventory Capacity 10 | 5 5 5 8 8 8 8 8 5 10 10 5 5 5 5 5 5 5 10 10 10 10 Average Capacity 7 | 5 5 5 6 8 8 8 7 5 6 6 5 5 5 5 5 5 5 10 10 10 9 Most Carried 10 | 2 5 5 8 8 8 8 8 5 8 10 5 5 5 5 5 5 5 6 9 10 10 Average Carried 6 | 1 3 4 6 8 8 7 7 4 5 5 5 4 5 5 5 5 5 5 7 9 8 Final Capacity 10 | 5 5 5 8 8 8 8 5 5 10 5 5 5 5 5 5 5 5 10 10 10 5 Final Carried 10 | 2 5 5 8 8 8 8 5 5 8 5 5 5 5 5 5 5 5 6 9 10 5 Class Distribution -------------------- 49% | Scavenger-Sprinter 26% | Mutant 11% | Sprinter 4% | Gladiator 3% | Hacker-Gladiator Dominant Class ---------------- Mutant | -10/Materials Mutant | -10/Mines Mutant | -9/Materials Mutant | -9/Mines Mutant | -9/Exiles Mutant | -8/Mines Mutant | -8/Materials Hacker-Gladiator | -7/Factory Hacker-Gladiator | -7/DSF Sprinter | -6/Factory Gladiator | -5/Factory Gladiator | -5/DSF Hacker-Sprinter | -4/Factory Scavenger-Sprinter | -4/Upper Caves Scavenger-Sprinter | -4/Upper Caves Scavenger-Sprinter | -4/Warlord Scavenger-Sprinter | -3/Proximity Caves Scavenger-Sprinter | -3/Research Scavenger-Sprinter | -3/DSF Scavenger-Sprinter | -2/Research Scavenger-Sprinter | -1/Access Resources | -11 -10 -10 -9 -9 -9 -8 -8 -7 -7 -6 -5 -5 -4 -4 -4 -4 -3 -3 -3 -2 -1 ----------- Run | Yrd Mat Min Mat Min Exi Min Mat Fac DSF Fac Fac DSF Fac Upp Upp War Pro Res DSF Res Acc Matter Collected 1901 | 167 70 10 102 . . . . 42 30 272 . 95 144 81 . . 20 28 . 562 278 Remotely . | . . . . . . . . . . . . . . . . . . . . . . Salvage Created 2907 | . 43 . 157 . . 59 . 42 39 704 . 120 144 51 . . 73 28 . 77 1370 Parts 170 | . 4 . 12 . . 3 . 4 5 18 . 11 7 2 . . 4 3 . 5 92 Haulers Intercepted 4 | . . . 1 . . . . 1 . 1 . . 1 . . . . . . . . Recyclers Shooed . | . . . . . . . . . . . . . . . . . . . . . . Parts Field Recycled 9 | . . . . . . . . 9 . . . . . . . . . . . . . Retrieved Matter 334 | . . . . . . . . 334 . . . . . . . . . . . . . Parts Self-Destructed 5 | . . . . . . . . . . . . . . 3 . . 2 . . . . Prevented 5 | . . . . . . . . . . . . . . 4 . . 1 . . . . Parts Restored . | . . . . . . . . . . . . . . . . . . . . . . Kills | -11 -10 -10 -9 -9 -9 -8 -8 -7 -7 -6 -5 -5 -4 -4 -4 -4 -3 -3 -3 -2 -1 ------- Run | Yrd Mat Min Mat Min Exi Min Mat Fac DSF Fac Fac DSF Fac Upp Upp War Pro Res DSF Res Acc Combat Hostiles Destroyed 37 | . 1 . 2 . . 2 . . 2 1 . 3 . 1 . . 3 . . . 22 Melee 32 | . . . . . . 2 . . 2 1 . 3 . 1 . . 3 . . . 20 Guns 3 | . 1 . 2 . . . . . . . . . . . . . . . . . . AOE 2 | . . . . . . . . . . . . . . . . . . . . . 2 Classes Destroyed 15 | . 1 . 2 . . 2 . . 1 5 . 1 1 . . . 1 . . . 1 Worker 11 | . . . . . . . . . . 3 . . . . . . . 1 . 3 4 Builder 2 | . . . . . . . . . . 1 . . . . . . . . . . 1 Tunneler 2 | . . . . . . . . . . . . . 1 . . . . . . 1 . Hauler 4 | . . . 1 . . . . 1 . 1 . . 1 . . . . . . . . Recycler 1 | . . . . . . . . . . 1 . . . . . . . . . . . Operator 2 | . . . . . . . . . . 1 . . . . . . . . . . 1 Drone 1 | . . . . . . . . . . . . . . . . . 1 . . . . Watcher 8 | . . . . . . . . . . . . . . . . . . . . . 8 Swarmer 19 | . . . . . . 1 . . . . . . . . . . 2 . . . 16 Cutter 4 | . . . . . . . . . 2 . . 2 . . . . . . . . . Grunt 1 | . 1 . . . . . . . . . . . . . . . . . . . . Sentry 3 | . . . 2 . . . . . . . . . . . . . . . . . 1 Specialist 1 | . . . . . . . . . . . . 1 . . . . . . . . . Hunter 1 | . . . . . . 1 . . . . . . . . . . . . . . . Programmer 7 | . . . . . . . . . . 1 . . . 1 . . . . . . 5 Best Kill Streak 5 | . 1 . 1 . . 1 . 1 2 2 . 3 2 1 . . 2 1 . 4 5 Combat Bots Only 5 | . 1 . 1 . . 1 . . 2 1 . 3 . 1 . . 2 . . . 5 Max Kills in Single Turn 2 | . 1 . 1 . . 1 . 1 1 1 . 1 1 1 . . 1 1 . 1 2 Gunslinging . | . . . . . . . . . . . . . . . . . . . . . . Exploded 2 | . . . . . . . . . . . . . . . . . . . . . 2 Melee 1 | . . . . . . 1 . . 1 1 . 1 . 1 . . 1 . . . 1 Uniques/NPCs Destroyed . | . . . . . . . . . . . . . . . . . . . . . . Combat | -11 -10 -10 -9 -9 -9 -8 -8 -7 -7 -6 -5 -5 -4 -4 -4 -4 -3 -3 -3 -2 -1 -------- Run | Yrd Mat Min Mat Min Exi Min Mat Fac DSF Fac Fac DSF Fac Upp Upp War Pro Res DSF Res Acc Hostile Shots Fired 470 | . 4 14 4 . . 13 14 . 8 10 . 21 . 14 2 . 40 . 3 . 323 Missed 201 | . 3 7 2 . . 4 5 . 1 5 . 11 . 13 1 . 26 . 2 . 121 Hits 269 | . 1 7 2 . . 9 9 . 7 5 . 10 . 1 1 . 14 . 1 . 202 Melee 8 | . . 1 . . . . 1 . 2 . . 4 . . . . . . . . . Projectile 261 | . 1 6 2 . . 9 8 . 5 5 . 6 . 1 1 . 14 . 1 . 202 AOE 9 | . . 7 . . . . 1 . . . . 1 . . . . . . . . . Critical Strikes 10 | . . . . . . . 1 . 2 . . 2 . . . . . . . . 5 Part Disruptions 3 | . . . . . . . . . . . . 3 . . . . . . . . . Damage Taken 6960 | . 20 300 29 . . 105 215 . 225 480 130 187 . 18 19 . 292 . 70 . 4870 Core 2501 | . 7 152 . . . 60 93 . 182 98 22 93 . 18 . . 87 . 70 . 1619 Absorbed by Shields 95 | . . . . . . . . . 51 . . . . . . . . . . . 44 Redirected to Shielding 177 | . . . . . . . . . . 73 . . . . . . . . . . 104 Regen/Repaired (Parts) 165 | . . . . . . . . . . . 66 . . . . 5 . . . . 94 Core Remaining (%) 83 | 100 . 36 . . . 85 83 . 74 88 . 88 . . . . 90 . 94 100 . Volleys Fired 10 | . 5 1 3 . . . . . . . . . . . . . . . . . 1 Largest 2 | . 2 2 2 . . . . . . . . . . . . . . . . . 1 Hottest 63 | . 60 60 63 . . . . . . . . . . . . . . . . . 52 Shots Fired 19 | . 10 2 6 . . . . . . . . . . . . . . . . . 1 Gun 18 | . 10 2 6 . . . . . . . . . . . . . . . . . . Cannon . | . . . . . . . . . . . . . . . . . . . . . . Launcher 1 | . . . . . . . . . . . . . . . . . . . . . 1 Special . | . . . . . . . . . . . . . . . . . . . . . . Kinetic 9 | . 5 1 3 . . . . . . . . . . . . . . . . . . Thermal 9 | . 5 1 3 . . . . . . . . . . . . . . . . . . Explosive 1 | . . . . . . . . . . . . . . . . . . . . . 1 Electromagnetic . | . . . . . . . . . . . . . . . . . . . . . . Robot Hit Streak 10 | . 3 1 10 . . . . . . . . . . . . . . . . . . Robot Miss Streak 1 | . 1 1 . . . . . . . . . . . . . . . . . . 1 Penetration Max . | . . . . . . . . . . . . . . . . . . . . . . Secondary Targets . | . . . . . . . . . . . . . . . . . . . . . . Shots Hit Robots 176 | . 7 1 9 . . 3 2 1 3 24 . 6 3 1 . . 6 1 . 8 101 Core Hits 73 | . 3 . 5 . . 1 . 1 2 7 . 3 2 1 . . 3 1 . 1 43 Critical Kills . | . . . . . . . . . . . . . . . . . . . . . . Critical Parts Destroyed . | . . . . . . . . . . . . . . . . . . . . . . Critical Strikes 19 | . . . . . . . 1 . 1 4 . 1 . . . . . . . . 12 Sever 19 | . . . . . . . 1 . 1 4 . 1 . . . . . . . . 12 Melee Attacks 203 | . . . 3 . . 4 6 1 4 26 . 7 4 1 . . 7 2 . 15 123 Impact . | . . . . . . . . . . . . . . . . . . . . . . Slashing 203 | . . . 3 . . 4 6 1 4 26 . 7 4 1 . . 7 2 . 15 123 Piercing . | . . . . . . . . . . . . . . . . . . . . . . Sneak Attacks 31 | . . . 2 . . . . 1 . 8 . . 3 . . . 1 1 . 4 11 Combat Hostiles 2 | . . . . . . . . . . . . . . . . . 1 . . . 1 Follow-up Attacks 12 | . . . 1 . . . . . . . . . 1 . . . . . . . 10 Damage Inflicted 8682 | . 70 6 237 . . 100 67 67 102 1305 . 198 209 44 . . 278 76 . 471 5452 Guns 143 | . 63 6 74 . . . . . . . . . . . . . . . . . . Cannons . | . . . . . . . . . . . . . . . . . . . . . . Explosions 403 | . . . . . . . . . . . . . . . . . . . . . 403 Melee 8117 | . . . 163 . . 100 63 67 102 1305 . 198 209 44 . . 278 76 . 471 5041 Ramming 19 | . 7 . . . . . 4 . . . . . . . . . . . . . 8 Kinetic 87 | . 39 6 42 . . . . . . . . . . . . . . . . . . Thermal 56 | . 24 . 32 . . . . . . . . . . . . . . . . . . Explosive 403 | . . . . . . . . . . . . . . . . . . . . . 403 Electromagnetic . | . . . . . . . . . . . . . . . . . . . . . . Impact . | . . . . . . . . . . . . . . . . . . . . . . Slashing 8117 | . . . 163 . . 100 63 67 102 1305 . 198 209 44 . . 278 76 . 471 5041 Piercing . | . . . . . . . . . . . . . . . . . . . . . . Highest Corruption 15 | . . . . . . . 5 . . 1 . . 3 3 3 3 . . . . 15 Average Corruption 2 | . . . . . . . 5 . . 1 . . 3 3 3 3 . . . . 3 Corruption Purged . | . . . . . . . . . . . . . . . . . . . . . . Corruption Blocked . | . . . . . . . . . . . . . . . . . . . . . . Effects 24 | . . . . . . . 2 . . 1 . . . 1 . 1 . . . . 19 Message Errors 6 | . . . . . . . . . . . . . . 1 . . . . . . 5 Matter Fused 7 | . . . . . . . 2 . . 1 . . . . . . . . . . 4 Heat Flow Errors 4 | . . . . . . . . . . . . . . . . 1 . . . . 3 Energy Discharges 2 | . . . . . . . . . . . . . . . . . . . . . 2 Parts Rejected 1 | . . . . . . . . . . . . . . . . . . . . . 1 Data Loss (minor) 2 | . . . . . . . . . . . . . . . . . . . . . 2 Misdirections 2 | . . . . . . . . . . . . . . . . . . . . . 2 Overload Shots . | . . . . . . . . . . . . . . . . . . . . . . Overflow Damage 1140 | . . . 2 . . 19 . . . 401 . . . . . . 4 . . 200 514 Projectiles . | . . . . . . . . . . . . . . . . . . . . . . Explosions 2 | . . . . . . . . . . . . . . . . . . . . . 2 Melee 1138 | . . . 2 . . 19 . . . 401 . . . . . . 4 . . 200 512 Knockbacks . | . . . . . . . . . . . . . . . . . . . . . . Impact . | . . . . . . . . . . . . . . . . . . . . . . Kinetic . | . . . . . . . . . . . . . . . . . . . . . . Secondary . | . . . . . . . . . . . . . . . . . . . . . . Self-Inflicted Damage 101 | . 3 . . . . . 1 . . . . . . . . . . . . . 97 Shots 1 | . . . . . . . . . . . . . . . . . . . . . 1 Rammed 6 | . 1 . . . . . 2 . . . . . . . . . . . . . 3 Targets Rammed 6 | . 1 . . . . . 2 . . . . . . . . . . . . . 3 Kicked . | . . . . . . . . . . . . . . . . . . . . . . Crushed . | . . . . . . . . . . . . . . . . . . . . . . Highest Temperature 418 | . 26 10 4 . . . . . . 418 . . . 5 . 135 5 114 . 130 197 Average Temperature 41 | . 9 7 4 . . . . . . 192 . . . 3 . 85 3 39 . 45 27 Received Heat Transfer 222 | . 6 . 9 . . . . . . . . . . 9 . . 9 . . . 189 Siege Activations . | . . . . . . . . . . . . . . . . . . . . . . Martial Activations . | . . . . . . . . . . . . . . . . . . . . . . Shielding Activations . | . . . . . . . . . . . . . . . . . . . . . . Robots Disrupted . | . . . . . . . . . . . . . . . . . . . . . . Combat Hostiles . | . . . . . . . . . . . . . . . . . . . . . . Robots Corrupted . | . . . . . . . . . . . . . . . . . . . . . . Combat Hostiles . | . . . . . . . . . . . . . . . . . . . . . . Parts Fried . | . . . . . . . . . . . . . . . . . . . . . . Impact Corruptions . | . . . . . . . . . . . . . . . . . . . . . . Robots Melted . | . . . . . . . . . . . . . . . . . . . . . . Combat Hostiles . | . . . . . . . . . . . . . . . . . . . . . . Parts Melted . | . . . . . . . . . . . . . . . . . . . . . . Heat Transferred 125 | . 50 . 75 . . . . . . . . . . . . . . . . . . Parts Sabotaged . | . . . . . . . . . . . . . . . . . . . . . . Parts Stolen . | . . . . . . . . . . . . . . . . . . . . . . Parts Stripped . | . . . . . . . . . . . . . . . . . . . . . . Power Chain Reactions . | . . . . . . . . . . . . . . . . . . . . . . Alert | -11 -10 -10 -9 -9 -9 -8 -8 -7 -7 -6 -5 -5 -4 -4 -4 -4 -3 -3 -3 -2 -1 ------- Run | Yrd Mat Min Mat Min Exi Min Mat Fac DSF Fac Fac DSF Fac Upp Upp War Pro Res DSF Res Acc Maximum Alert Level 2 | . . . . . . . . . . 2 . . . . . . . 2 . . 2 Low Security (%) 60 | 100 100 100 100 100 . 100 100 100 100 40 100 100 100 . . . . . 100 100 20 Level 1 33 | . . . . . . . . . . 57 . . . . . . . 45 . . 71 Level 2 5 | . . . . . . . . . . 2 . . . . . . . 54 . . 8 Level 3 . | . . . . . . . . . . . . . . . . . . . . . . Level 4 . | . . . . . . . . . . . . . . . . . . . . . . Level 5 . | . . . . . . . . . . . . . . . . . . . . . . High Security . | . . . . . . . . . . . . . . . . . . . . . . Max Security . | . . . . . . . . . . . . . . . . . . . . . . Peak Influence 468 | . 46 34 65 16 . 30 22 21 55 402 164 110 83 . . . . 443 191 117 468 Initial 438 | . . . 5 16 . . 7 . 7 28 164 60 57 . . . . 438 191 107 19 Average 153 | . 20 11 28 12 . 8 6 . 28 245 128 95 65 . . . . 357 191 80 246 Influence Increases 3168 | . 71 69 114 8 . 50 46 28 65 540 33 70 38 135 . . 240 347 . 35 1279 Destroy 0b10 Robot/C 720 | . 20 . 40 . . 40 . . 40 20 . 60 . 20 . . 40 . . . 440 Destroy 0b10 Robot/NC 170 | . . . 5 . . . . 5 . 50 . . 10 . . . 5 5 . 20 70 Destroy Leader 174 | . 10 . 22 . . 10 . 2 10 12 . 10 2 10 . . . . . . 86 Successful Hack 355 | . 41 9 47 8 . . . 21 . 28 33 . 24 . . . . 42 . . 102 Anti-Garrison Action 600 | . . . . . . . . . . 400 . . . . . . . . . . 200 Destroy Structure 84 | . . . . . . . 1 . . . . . 2 . . . . . . 15 66 Advance Influence 300 | . . . . . . . . . . . . . . . . . . 300 . . . Partial Spotted 195 | . . . . . . . 45 . . 15 . . . . . . . . . . 135 Lose Combat Pursuer 570 | . . 60 . . . . . . 15 15 . . . 105 . . 195 . . . 180 Influence Decreases 2740 | . 70 55 87 36 14 30 66 17 21 259 282 47 103 48 46 86 35 297 64 194 883 Entered New Map 705 | . . 1 10 26 14 . 13 . 4 27 172 27 53 18 26 86 . 67 64 84 13 Time Decay 1291 | . 70 40 77 10 . 30 38 17 . 204 90 . 50 30 20 . 15 80 . 110 410 Lost Part 594 | . . 14 . . . . 15 . 17 28 20 20 . . . . 20 . . . 460 Purge Threat 150 | . . . . . . . . . . . . . . . . . . 150 . . . Squads Dispatched 21 | . 1 . 2 . . . 2 1 1 2 . 2 . . . . 1 . . . 9 Investigation 8 | . . . 2 . . . . 1 . 2 . . . . . . . . . . 3 Extermination 4 | . . . . . . . . . . . . . . . . . . . . . 4 Reinforcement 8 | . 1 . . . . . 2 . 1 . . 2 . . . . . . . . 2 Assault 1 | . . . . . . . . . . . . . . . . . 1 . . . . Garrison . | . . . . . . . . . . . . . . . . . . . . . . Intercept . | . . . . . . . . . . . . . . . . . . . . . . Searches Triggered . | . . . . . . . . . . . . . . . . . . . . . . Construction Impeded . | . . . . . . . . . . . . . . . . . . . . . . Haulers Reinforced . | . . . . . . . . . . . . . . . . . . . . . . Active Scanning Responses . | . . . . . . . . . . . . . . . . . . . . . . Cargo Convoy Interrupts . | . . . . . . . . . . . . . . . . . . . . . . Stealth | -11 -10 -10 -9 -9 -9 -8 -8 -7 -7 -6 -5 -5 -4 -4 -4 -4 -3 -3 -3 -2 -1 --------- Run | Yrd Mat Min Mat Min Exi Min Mat Fac DSF Fac Fac DSF Fac Upp Upp War Pro Res DSF Res Acc Distress Signals 6 | . 1 . 1 . . . . . . . . . . . . . 1 . . 1 2 Communications Jammed 22 | . . . . . . . . . . . . . . . . . . . . . 22 Distress Signals 22 | . . . . . . . . . . . . . . . . . . . . . 22 Times Spotted 165 | . 5 14 7 . . 8 5 1 3 3 1 7 . 9 2 . 21 . 1 . 78 Peak Tracking Total 21 | . 3 21 4 . . 6 4 1 3 2 5 4 . 8 1 . 12 . 1 . 18 Tactical Retreats 19 | . . 4 . . . . . . 1 1 . . . 2 . . 2 . . . 9 ECM-based Alert Blocks 17 | . . . . . . . . . . . . . . . . . . . . . 17 Traps | -11 -10 -10 -9 -9 -9 -8 -8 -7 -7 -6 -5 -5 -4 -4 -4 -4 -3 -3 -3 -2 -1 ------- Run | Yrd Mat Min Mat Min Exi Min Mat Fac DSF Fac Fac DSF Fac Upp Upp War Pro Res DSF Res Acc Traps Triggered 11 | . . . . . . . . 1 1 2 1 . 1 . . . . 3 . . 2 Indirectly . | . . . . . . . . . . . . . . . . . . . . . . Trap Hack Attempts . | . . . . . . . . . . . . . . . . . . . . . . Triggered . | . . . . . . . . . . . . . . . . . . . . . . Disarmed . | . . . . . . . . . . . . . . . . . . . . . . Reprogrammed . | . . . . . . . . . . . . . . . . . . . . . . Reused . | . . . . . . . . . . . . . . . . . . . . . . Traps Extracted . | . . . . . . . . . . . . . . . . . . . . . . Installed 1 | . . 1 . . . . . . . . . . . . . . . . . . . Triggered . | . . . . . . . . . . . . . . . . . . . . . . Machines | -11 -10 -10 -9 -9 -9 -8 -8 -7 -7 -6 -5 -5 -4 -4 -4 -4 -3 -3 -3 -2 -1 ---------- Run | Yrd Mat Min Mat Min Exi Min Mat Fac DSF Fac Fac DSF Fac Upp Upp War Pro Res DSF Res Acc Machines Disabled . | . . . . . . . . . . . . . . . . . . . . . . Max in Single Turn . | . . . . . . . . . . . . . . . . . . . . . . Garrison Access 7 | . . . . . . . 1 . . 2 1 . . . . . . . . 2 1 Machines Repaired . | . . . . . . . . . . . . . . . . . . . . . . Machines Dismantled . | . . . . . . . . . . . . . . . . . . . . . . Machines Sabotaged . | . . . . . . . . . . . . . . . . . . . . . . Overloaded Fab Kills . | . . . . . . . . . . . . . . . . . . . . . . Hacking | -11 -10 -10 -9 -9 -9 -8 -8 -7 -7 -6 -5 -5 -4 -4 -4 -4 -3 -3 -3 -2 -1 --------- Run | Yrd Mat Min Mat Min Exi Min Mat Fac DSF Fac Fac DSF Fac Upp Upp War Pro Res DSF Res Acc Machines Accessed 55 | . 4 2 5 1 2 . 2 2 . 7 6 . 1 . . 6 . 5 . 2 10 Terminals 29 | . 4 1 3 1 . . 1 2 . 2 4 . 1 . . . . 4 . 1 5 Fabricators 3 | . . . . . . . . . . 1 . . . . . . . . . . 2 Repair Stations 2 | . . . . . . . . . . . 1 . . . . . . . . . 1 Recycling Units 1 | . . . 1 . . . . . . . . . . . . . . . . . . Scanalyzers 5 | . . . 1 . . . . . . 2 . . . . . . . 1 . . 1 Garrison Access 6 | . . . . . . . 1 . . 2 1 . . . . . . . . 1 1 Total Hacks 123 | . 10 4 16 2 3 . 4 3 . 17 17 . 2 . . 6 . 8 . 7 24 Successful 60 | . 6 2 7 1 3 . 1 2 . 10 6 . 1 . . 6 . 6 . 2 7 Failed 62 | . 4 2 9 1 . . 3 1 . 6 11 . 1 . . . . 2 . 5 17 Catastrophic 9 | . . 1 . 1 . . . . . 2 3 . . . . . . . . . 2 Database Lockouts 1 | . . . . . . . . . . 1 . . . . . . . . . . . Manual 74 | . 10 3 10 3 1 . 2 2 . 6 10 . 2 . . 1 . 4 . 4 16 Terminals 70 | . 10 3 11 2 . . 2 3 . 3 12 . 2 . . . . 6 . 2 14 Fabricators 5 | . . . . . . . . . . 2 . . . . . . . . . . 3 Repair Stations 4 | . . . . . . . . . . . 3 . . . . . . . . . 1 Recycling Units 2 | . . . 2 . . . . . . . . . . . . . . . . . . Scanalyzers 17 | . . . 3 . . . . . . 10 . . . . . . . 2 . . 2 Garrison Access 15 | . . . . . . . 2 . . 2 2 . . . . . . . . 5 4 Terminal Hacks 19 | . 2 2 1 . 3 . . 1 . . 1 . . . . 6 . 2 . . 1 Record 7 | . . . . . 2 . . . . . . . . . . 5 . . . . . Part Schematic 1 | . 1 . . . . . . . . . . . . . . . . . . . . Robot Analysis 2 | . 1 . . . . . . . . . . . . . . . . . . . 1 Open Door 2 | . . 1 . . . . . . . . . . . . . 1 . . . . . Open DSF 3 | . . . . . . . . 1 . . 1 . . . . . . 1 . . . Level Access Points 1 | . . 1 . . . . . . . . . . . . . . . . . . . Branch Access Points 1 | . . . 1 . . . . . . . . . . . . . . . . . . Unreport Threat 1 | . . . . . . . . . . . . . . . . . . 1 . . . Proto ID Catalog 1 | . . . . . 1 . . . . . . . . . . . . . . . . Fabricator Hacks . | . . . . . . . . . . . . . . . . . . . . . . Repair Station Hacks 2 | . . . . . . . . . . . 2 . . . . . . . . . . Scan Component 1 | . . . . . . . . . . . 1 . . . . . . . . . . Repair 1 | . . . . . . . . . . . 1 . . . . . . . . . . Recycling Unit Hacks . | . . . . . . . . . . . . . . . . . . . . . . Scanalyzer 12 | . . . 2 . . . . . . 7 . . . . . . . 1 . . 2 Insert Component 2 | . . . . . . . . . . 2 . . . . . . . . . . . Analyze 3 | . . . . . . . . . . 3 . . . . . . . . . . . Retrieve Study 7 | . . . 2 . . . . . . 2 . . . . . . . 1 . . 2 Garrison Access Hacks 3 | . . . . . . . 1 . . . 1 . . . . . . . . 1 . Seal Access 3 | . . . . . . . 1 . . . 1 . . . . . . . . 1 . Unauthorized Hacks 24 | . 4 . 4 1 . . . 1 . 3 2 . 1 . . . . 3 . 1 4 Terminals 16 | . 4 . 2 1 . . . 1 . . 2 . 1 . . . . 3 . . 2 Botnet 15 | . 4 . 2 . . . . 1 . . 2 . 1 . . . . 3 . . 2 Detonate 1 | . . . . 1 . . . . . . . . . . . . . . . . . Fabricators 1 | . . . . . . . . . . 1 . . . . . . . . . . . Fabnet 1 | . . . . . . . . . . 1 . . . . . . . . . . . Repair Stations 1 | . . . . . . . . . . . . . . . . . . . . . 1 Patch 1 | . . . . . . . . . . . . . . . . . . . . . 1 Recycling Units 2 | . . . 2 . . . . . . . . . . . . . . . . . . Reject 1 | . . . 1 . . . . . . . . . . . . . . . . . . Mask 1 | . . . 1 . . . . . . . . . . . . . . . . . . Scanalyzers . | . . . . . . . . . . . . . . . . . . . . . . Garrison Access 4 | . . . . . . . . . . 2 . . . . . . . . . 1 1 Watchers 1 | . . . . . . . . . . . . . . . . . . . . 1 . Jam 3 | . . . . . . . . . . 2 . . . . . . . . . . 1 Data Cores Recovered 1 | . . . . . . . . . . 1 . . . . . . . . . . . Used 1 | . . . . . . . . . . 1 . . . . . . . . . . . Hacking Detections 33 | . 3 1 4 1 . . 2 1 . 3 3 . 1 . . . . 3 . 2 9 Full Trace Events 3 | . . . 2 . . . . . . . . . . . . . . . . . 1 Feedback Events . | . . . . . . . . . . . . . . . . . . . . . . Feedback Blocked . | . . . . . . . . . . . . . . . . . . . . . . Robot Schematics Acquired . | . . . . . . . . . . . . . . . . . . . . . . Robots Built . | . . . . . . . . . . . . . . . . . . . . . . Authchips . | . . . . . . . . . . . . . . . . . . . . . . Time . | . . . . . . . . . . . . . . . . . . . . . . Total Robot Build Rating . | . . . . . . . . . . . . . . . . . . . . . . Part Schematics Acquired 3 | . 1 . . . . . . . . 2 . . . . . . . . . . . Parts Built . | . . . . . . . . . . . . . . . . . . . . . . Authchips . | . . . . . . . . . . . . . . . . . . . . . . Time . | . . . . . . . . . . . . . . . . . . . . . . Total Part Build Rating . | . . . . . . . . . . . . . . . . . . . . . . Part Studies Acquired 7 | . . . 2 . . . . . . 2 . . . . . . . 1 . . 2 Parts Repaired 1 | . . . . . . . . . . . 1 . . . . . . . . . . Time 38 | . . . . . . . . . . . 38 . . . . . . . . . . Parts Recycled . | . . . . . . . . . . . . . . . . . . . . . . Recycled Matter . | . . . . . . . . . . . . . . . . . . . . . . Retrieved Matter . | . . . . . . . . . . . . . . . . . . . . . . Retrieved Components . | . . . . . . . . . . . . . . . . . . . . . . Parts Scanalyzed 2 | . . . . . . . . . . 2 . . . . . . . . . . . Part Schematics Acquired 2 | . . . . . . . . . . 2 . . . . . . . . . . . Parts Damaged . | . . . . . . . . . . . . . . . . . . . . . . Bothacking | -11 -10 -10 -9 -9 -9 -8 -8 -7 -7 -6 -5 -5 -4 -4 -4 -4 -3 -3 -3 -2 -1 ------------ Run | Yrd Mat Min Mat Min Exi Min Mat Fac DSF Fac Fac DSF Fac Upp Upp War Pro Res DSF Res Acc Used RIF Installer . | . . . . . . . . . . . . . . . . . . . . . . Robots Hacked . | . . . . . . . . . . . . . . . . . . . . . . Non-combat . | . . . . . . . . . . . . . . . . . . . . . . Combat . | . . . . . . . . . . . . . . . . . . . . . . Robot Hacks Applied . | . . . . . . . . . . . . . . . . . . . . . . Relay Couplers Released 6 | . . . . . . . . . . 4 . . . . . . . . . 2 . Machine Destruction 2 | . . . . . . . . . . . . . . . . . . . . 2 . Programmers 4 | . . . . . . . . . . 4 . . . . . . . . . . . Fabnet Peak Effective % 3 | . . . . . . . . . . . 3 3 1 1 1 1 . . . . . Robots Rewired . | . . . . . . . . . . . . . . . . . . . . . . Allies Hacked . | . . . . . . . . . . . . . . . . . . . . . . Hacks Repelled . | . . . . . . . . . . . . . . . . . . . . . . Allies | -11 -10 -10 -9 -9 -9 -8 -8 -7 -7 -6 -5 -5 -4 -4 -4 -4 -3 -3 -3 -2 -1 -------- Run | Yrd Mat Min Mat Min Exi Min Mat Fac DSF Fac Fac DSF Fac Upp Upp War Pro Res DSF Res Acc Total Allies . | . . . . . . . . . . . . . . . . . . . . . . Largest Group . | . . . . . . . . . . . . . . . . . . . . . . Highest-Rated Group . | . . . . . . . . . . . . . . . . . . . . . . Highest-Rated Ally . | . . . . . . . . . . . . . . . . . . . . . . Total Orders . | . . . . . . . . . . . . . . . . . . . . . . Ally Attacks . | . . . . . . . . . . . . . . . . . . . . . . Total Damage . | . . . . . . . . . . . . . . . . . . . . . . Kills . | . . . . . . . . . . . . . . . . . . . . . . Allies Corrupted . | . . . . . . . . . . . . . . . . . . . . . . Allies Melted . | . . . . . . . . . . . . . . . . . . . . . . Intel | -11 -10 -10 -9 -9 -9 -8 -8 -7 -7 -6 -5 -5 -4 -4 -4 -4 -3 -3 -3 -2 -1 ------- Run | Yrd Mat Min Mat Min Exi Min Mat Fac DSF Fac Fac DSF Fac Upp Upp War Pro Res DSF Res Acc Active Infowar (turns) 3649 | . 69 157 157 33 109 111 113 200 48 440 181 64 101 73 54 124 69 171 26 222 1127 Optics 3392 | . . . 126 33 109 111 113 200 48 440 181 64 101 73 54 124 69 171 26 222 1127 Sensors 257 | . 69 157 31 . . . . . . . . . . . . . . . . . . Jamming 638 | . . . . . . . . . . . 3 26 63 4 . . . . . . 542 ECM 478 | . . . . . . . . . . . . . . . . . . 52 . . 426 Robot Analysis Total 2 | . 1 . . . . . . . . . . . . . . . . . . . 1 Derelict Logs Recovered 1 | . . . . . . . . . . . . . . 1 . . . . . . . Drone Launches . | . . . . . . . . . . . . . . . . . . . . . . Drone Recoveries . | . . . . . . . . . . . . . . . . . . . . . . Exploration | -11 -10 -10 -9 -9 -9 -8 -8 -7 -7 -6 -5 -5 -4 -4 -4 -4 -3 -3 -3 -2 -1 ------------- Run | Yrd Mat Min Mat Min Exi Min Mat Fac DSF Fac Fac DSF Fac Upp Upp War Pro Res DSF Res Acc Turns Passed 3835 | 24 187 157 189 33 109 111 113 200 48 440 181 64 101 73 54 124 69 171 26 222 1139 Spaces Moved 8196 | 41 293 291 279 90 294 252 220 351 72 931 287 94 315 309 258 556 200 430 87 552 1994 Core 842 | 41 293 291 83 . . . . . . . . 1 . . . . . . . . 133 Treads . | . . . . . . . . . . . . . . . . . . . . . . Legs . | . . . . . . . . . . . . . . . . . . . . . . Wheels . | . . . . . . . . . . . . . . . . . . . . . . Hover . | . . . . . . . . . . . . . . . . . . . . . . Flight 7354 | . . . 196 90 294 252 220 351 72 931 287 93 315 309 258 556 200 430 87 552 1861 Fastest Speed 16 | 50 50 50 37 37 37 34 29 35 26 26 32 21 21 21 21 21 18 18 18 20 16 Average Speed 27 | 50 50 50 45 37 37 36 32 39 29 30 32 26 21 21 21 21 20 18 19 20 20 Slowest Speed 275 | 50 50 50 100 37 37 37 35 275 35 32 35 100 24 21 21 21 21 68 22 21 150 Overloaded Moves . | . . . . . . . . . . . . . . . . . . . . . . Propulsion Burnouts . | . . . . . . . . . . . . . . . . . . . . . . Robots Hopped 55 | . . . . 4 . 7 3 1 . . 1 3 . 1 1 . . 11 . 3 20 Potential Cave-ins . | . . . . . . . . . . . . . . . . . . . . . . Cave-ins Triggered . | . . . . . . . . . . . . . . . . . . . . . . Exploration Rate (%) 39 | 3 61 64 30 20 71 60 22 9 73 30 11 48 10 48 52 80 44 12 56 17 51 Regions Visited 21 Branch Regions 8 Pre-discovered Areas 1 | . . . . . 1 . . . . . . . . . . . . . . . . Known Exits Taken 6 | . 1 1 1 . . . . 1 . . 1 . . . . . . 1 . . . Unknown Exits Taken 12 | 1 . . . 1 1 1 1 . . 1 . . 1 1 1 1 1 . . 1 . Scrap Searched 6 | . . . . . . 2 . . . . . . . 3 1 . . . . . . Spaces Dug 12 | . . . . . . . 1 . . . . . 1 . . . . . . 5 5 Terrain Destroyed 32 | . . . . . . . 1 . . . . . 1 . . . . . . 5 25 Melee 12 | . . . . . . . 1 . . . . . 1 . . . . . . 5 5 Projectile . | . . . . . . . . . . . . . . . . . . . . . . AOE 20 | . . . . . . . . . . . . . . . . . . . . . 20 Terrain Rammed . | . . . . . . . . . . . . . . . . . . . . . . Walls Destroyed . | . . . . . . . . . . . . . . . . . . . . . . Machines Disabled . | . . . . . . . . . . . . . . . . . . . . . . Actions | -11 -10 -10 -9 -9 -9 -8 -8 -7 -7 -6 -5 -5 -4 -4 -4 -4 -3 -3 -3 -2 -1 --------- Run | Yrd Mat Min Mat Min Exi Min Mat Fac DSF Fac Fac DSF Fac Upp Upp War Pro Res DSF Res Acc Total 9387 | 43 323 300 336 85 295 256 248 404 93 1054 370 116 341 313 256 562 216 507 93 639 2537 Wait 720 | . 18 4 23 . . 3 13 32 . 43 78 6 2 1 . 7 9 45 1 59 376 Move 8072 | 40 292 290 278 81 293 237 214 348 71 930 284 87 314 306 255 555 199 408 86 545 1959 Hop 49 | . . . . 4 . 7 3 1 . . 1 3 . 1 1 . . 10 . 3 15 Pick Up 72 | 2 4 2 10 . 1 2 1 4 5 12 . 3 . 1 . . . 3 1 5 16 Fast Attach 71 | 1 2 . 7 . . 1 3 4 3 4 5 7 4 . . . 2 6 1 4 17 Attach 34 | . 1 1 2 . . . 3 . 1 8 . 1 . . . . . 2 . . 15 Detach 18 | . . . 2 . . . 1 . 1 5 1 . 1 . . . . 2 1 . 4 Swap 23 | . . . . . . . . 9 . 1 . . . 2 . . . . 3 3 5 Drop 61 | . . 1 9 . 1 2 3 5 2 12 1 2 2 1 . . . 2 . 7 11 Fire 10 | . 5 1 3 . . . . . . . . . . . . . . . . . 1 Melee 179 | . . . 2 . . 4 6 1 3 24 . 7 3 1 . . 6 1 . 13 108 Ram 5 | . 1 . . . . . 1 . . . . . . . . . . . . . 3 Kick . | . . . . . . . . . . . . . . . . . . . . . . Crush . | . . . . . . . . . . . . . . . . . . . . . . Escape Stasis 72 | . . . . . . . . . 7 15 . . 15 . . . . 28 . . 7 Rewire . | . . . . . . . . . . . . . . . . . . . . . . Trap 1 | . . 1 . . . . . . . . . . . . . . . . . . . Miscellaneous . | . . . . . . . . . . . . . . . . . . . . . . Route ------- -11/Scrapyard -10/Materials (discovered 2 exits: *Mat / *Min) -10/Mines (discovered 2 exits: *Mat x2) -9/Materials (discovered 2 exits: *Min x2) -9/Mines (discovered 2 exits: *Mat / *Exi) -9/Exiles (discovered 2 exits: [*Min x2]) -8/Mines (discovered 2 exits: *Mat x2) -8/Materials -7/Factory (discovered 2 exits: [*Sto] / DSF) -7/DSF -6/Factory (discovered 2 exits: *Fac / [*Low]) -5/Factory -5/DSF -4/Factory -4/Upper Caves -4/Upper Caves (discovered 2 exits: *Res / *War) -4/Warlord -3/Proximity Caves -3/Research -3/DSF -2/Research (discovered 2 exits: *Acc / *Tes) -1/Access History --------- Turn | Location | Event 6 | -11/Scrapyard | Discovered new exit (range 14) 25 | -11/Scrapyard | Entered Materials 96 | -10/Materials | Discovered new exit (range 9) 143 | -10/Materials | Discovered new exit (range 9) 149 | -10/Materials | Identified exit to Mines 212 | -10/Materials | Entered Mines 256 | -10/Mines | Assembled infested the area 261 | -10/Mines | Assisted by a Guerilla fighting off Assembled 273 | -10/Mines | Found a hidden stash of uninstalled traps 295 | -10/Mines | Identified exit to Materials 316 | -10/Mines | Build established: Mutant 340 | -10/Mines | Core integrity fell below 50% 363 | -10/Mines | Found the Drone Emporium 365 | -10/Mines | Found Prototype Device 369 | -10/Mines | Entered Materials 369 | -9/Materials | Evolved 2 slots: Propulsion x2 447 | -9/Materials | Identified exit to Mines 558 | -9/Materials | Entered Mines 562 | -9/Mines | Met a Derelict bent on vengeance 571 | -9/Mines | Discovered new exit (range 17) 590 | -9/Mines | Deemed a non-threat by the Exiles lab entrance 590 | -9/Mines | Discovered new exit (range 5) 591 | -9/Mines | Entered Exiles 596 | -9/Exiles | Discovered new exit (range 17) 601 | -9/Exiles | Met 8R-AWN 607 | -9/Exiles | Met EX-HEX 618 | -9/Exiles | Met EX-BIN 623 | -9/Exiles | Aligned with FarCom system 623 | -9/Exiles | Given EX-Vault access code 632 | -9/Exiles | Opened EX-Vault 635 | -9/Exiles | Found Superbattery 643 | -9/Exiles | Warned to stay clear of 0b10 Research branches 664 | -9/Exiles | Met EX-DEC 672 | -9/Exiles | Learned location of Zion (-7) 697 | -9/Exiles | Discovered new exit (range 12) 700 | -9/Exiles | Left Exiles lab with Superbattery 700 | -9/Exiles | Entered Mines 715 | -8/Mines | Found DCF Scrap (12 items) 803 | -8/Mines | Discovered new exit (range 10) 805 | -8/Mines | Discovered new exit (range 13) 811 | -8/Mines | Entered Materials 811 | -8/Materials | Evolved 2 slots: Utility x2 918 | -8/Materials | Discovered new exit (range 5) 924 | -8/Materials | Entered Factory 924 | -7/Factory | Evolved 2 slots: Utility x2 950 | -7/Factory | Lost 3 parts (3n) 983 | -7/Factory | Discovered new exit (range 8) 1124 | -7/Factory | Identified exit to DSF 1124 | -7/Factory | Entered DSF 1139 | -7/DSF | Additional patrols routed to DSF 1164 | -7/DSF | Discovered new exit (range 18) 1172 | -7/DSF | Entered Factory 1172 | -6/Factory | Evolved 2 slots: Power x1, Utility x1 1288 | -6/Factory | Lost 3 parts (2n1u) 1339 | -6/Factory | Discovered new exit (range 9) 1431 | -6/Factory | Discovered new exit (range 4) 1440 | -6/Factory | Central database locked down 1571 | -6/Factory | Build established: Sprinter 1612 | -6/Factory | Entered another Factory area 1612 | -5/Factory | Evolved 2 slots: Utility x2 1670 | -5/Factory | Repaired Surge Thruster+ 1793 | -5/Factory | Identified exit to DSF 1793 | -5/Factory | Entered DSF 1815 | -5/DSF | Additional patrols routed to DSF 1852 | -5/DSF | Discovered new exit (range 18) 1857 | -5/DSF | Entered Factory 1857 | -4/Factory | Evolved 2 slots: Propulsion x2 1953 | -4/Factory | Discovered new exit (range 7) 1958 | -4/Factory | Entered Upper Caves 1981 | -4/Upper Caves | Encountered a Warlord checkpoint 2013 | -4/Upper Caves | Entered a destroyed Warlord outpost 2030 | -4/Upper Caves | Learned Research stockpile data 2030 | -4/Upper Caves | Discovered new exit (range 8) 2031 | -4/Upper Caves | Entered another Upper Caves area 2036 | -4/Upper Caves | Discovered new exit (range 6) 2082 | -4/Upper Caves | Discovered new exit (range 17) 2085 | -4/Upper Caves | Entered Warlord 2093 | -4/Warlord | System corruption cleaned by Quarantine Array 2156 | -4/Warlord | Met Warlord 2181 | -4/Warlord | Warlord's base attacked by MAIN.C 2203 | -4/Warlord | Opened side exit 2208 | -4/Warlord | Discovered new exit (range 9) 2209 | -4/Warlord | Entered Proximity Caves 2212 | -3/Proximity Caves | Spotter reported a threat 2212 | -3/Proximity Caves | Spotter reported a threat 2224 | -3/Proximity Caves | Attracted the attention of an 0b10 outpost 2236 | -3/Proximity Caves | Build established: Scavenger-Sprinter 2276 | -3/Proximity Caves | Discovered new exit (range 11) 2278 | -3/Proximity Caves | Entered Research 2278 | -3/Research | Evolved 2 slots: Propulsion x1, Utility x1 2366 | -3/Research | Found Prototype Device 2366 | -3/Research | Identified Exp. Thermal Defense Suite 2449 | -3/Research | Identified exit to DSF 2449 | -3/Research | Entered DSF 2465 | -3/DSF | Discovered new exit (range 18) 2475 | -3/DSF | Entered Research 2475 | -2/Research | Warlord forces began assault on 0b10 2475 | -2/Research | Evolved 2 slots: Power x1, Utility x1 2585 | -2/Research | Research machine network offline 2663 | -2/Research | Met up with Warlord 2665 | -2/Research | Discovered new exit (range 17) 2668 | -2/Research | Identified exit to Testing 2694 | -2/Research | Discovered new exit (range 16) 2697 | -2/Research | Entered Access 2697 | -1/Access | Evolved 2 slots: Propulsion x1, Utility x1 2910 | -1/Access | Spotted B-99 Colossus 3083 | -1/Access | Lost 3 parts (1p2n) 3482 | -1/Access | Spotted B-99 Colossus 3486 | -1/Access | Lost 4 parts (3n1u) 3552 | -1/Access | Lost 5 parts (1p1n2u1w) 3707 | -1/Access | System corruption reached 10% 3784 | -1/Access | Core integrity fell below 50% 3800 | -1/Access | Lost 25 parts (4p13n6u2w) 3818 | -1/Access | Found Fusion Bomb Launcher 3825 | -1/Access | Core integrity fell below 20% 3836 | -1/Access | Destroyed by S-43 Plague with Heavy Machine Gun Last Messages --------------- 03789_ Slug penetrates Wall. 03793_ Penetrated by Slug. 03804_ System corrupted: Energy discharge (-22). 03812_ Biometal Medium Treads destroyed. 03818_ Acquired Fusion Bomb Launcher. 03820_ Destroyed Xenon Bombardment Thruster. 03820_ S-43 Plague destroyed. 03820_ Fusion Bomb Launcher destroyed. 03821_ Hacking Suite destroyed. 03822_ Acquired 18 matter. 03823_ Acquired Xenon Bombardment Thruster+. 03823_ Xenon Bombardment Thruster+ destroyed. 03824_ Adv. Visual Processing Unit destroyed. 03825_ The unstable cave ceiling collapses. 03825_ Penetrated by Slug. 03826_ The unstable cave ceiling collapses. 03826_ Adv. Melee Analysis Suite destroyed. 03828_ Penetrated by Slug. 03828_ Slug penetrates Wall. 03830_ System corrupted: Heat flow error (+190). Map ----- +----------------------------------------------------+ | #????????????????????????????# #??????????# | | #????????????????????????????# #??????????# | | #????????????????????????????# #????????+ | | #????????????????????????????# #????????### | | #????????????????????????????# ###????????? | | #??????????????????????###???# ?????????? | | ! #??????????????????????# ##### #??????????? | | #??????????????????????# # ##?????????? | | #??????????############# #?????????? | | #??????????#!!= #??????????? | | #??????????#!== #??????????? | | #??????????#!== ! [ %* #??????????? | | ######??????????# = #??????????? | | ????????????????# #??????????? | | ????????????????# #??????????? | | ????????????????# ssp ! #??????????? | | ??????????#?????#######s######## ## #?????????#+ | | ?########Y#?????????###Y###?##?#### ########### | | #????###### s #???????# h h | | ! #????# ######### ########### | | % #????# #?????????# | | ""#????# s ##########/#######????# | | ! ""#????# ## s #???# #????# | | " ""#????# ?###s####### ###### | | """ G?????# ??# ss ## / | | """ ""?????# ???# @ ## ]]! ######/ | | " ""?????#????# "" ! ## ]! # | | ""??????????# """ ## ]! [ #! | | #?????????# "T ## # " | | #?????????+ """ ## # """ | | ###########?????????# "" ]## #[ """ | | ##??????????????????# ## # " | | #??????????????????#] [ ## # | | #??????????????????#####?##### # | | #????????????????????????????#################### | | %#???????????????????????????????????????????????? | | #???????????????????????????????????????????????? | | #???????????????????????????????????????????????? | | ##???????????????????????????????????????????????? | | ?????????????????????????????????????????????????? | | ?????????????????????????????????????????????????? | | ?????????????????????????????????????????????????? | | ?????????????????????????????????????????????????? | | ?????????????????????????????????????????????????? | | ?????????????????????????????????????????????????? | | ?????????????????????????????????????????????????? | | ?????????????????????????????????????????????????? | | ?????????????????????????????????????????????????? | | ?????????????????????????????????????????????????? | | ?????????????????????????????????????????????????? | +----------------------------------------------------+ Best States ------------- Heat Dissipation 71 Energy Generation 61 Energy Capacity 440 Matter Stores 300 Matter Capacity 700 Sight Range 20 Robot Scan Range 14 Terrain Scan Density 10 ECM Strength 1 Jamming Range 14 Additional Mass Support 6 Propulsion Shielding 66 Evasion (%) 76 Melee Accuracy 37 Force Boost 30 Offensive Hacking 10 Defensive Hacking 12 Item Schematics ----------------- Flight Unit | -10/Materials | Hacked Surge Thruster | -6/Factory | Scanalyzed Scythe | -6/Factory | Scanalyzed Robot Schematics ------------------ None Fabricated ------------ Nothing Repaired ---------- Surge Thruster | 5% | -5/Factory Studied --------- Sml. Laser | -9/Materials | Hacked Flight Unit | -9/Materials | Hacked Surge Thruster | -6/Factory | Hacked Scythe | -6/Factory | Hacked Imp. Surge Thruster | -3/Research | Hacked Xenon Bombardment Thruster | -1/Access | Hacked Field Propulsion Array | -1/Access | Hacked Alien Tech Used ----------------- None Achievements -------------- Total Silence Watch This! Challenges ------------ None Game ------ Seed SubatomicBoltMinigun Manual? 0 Play Time 01:44:02 Cumulative 195.1 hours Start 2026.07.21 @ 13:23:10 End 2026.07.21 @ 15:11:55 Sessions 5 Manual Loads 0 Difficulty Rogue Special Mode None Game No. 258 Rogue 258 Adventurer 0 Explorer 0 Win Type - Total 4 Types 4/0/0/0/0/0/0/0/0/0 Lore% 79 Gallery% 59 Achievement% 47 Wizard Run 0 Options --------- Layout 0 ASCII 0 Keyboard 0 Movement Numpad Keybinds 0 Fullscreen 1 Font 18/Terminus Map View 76x50 Zoom Use 0% Tactical HUD 1 Map Filters NONE Filters NONE Steam 1 RUN: 3f4d1803-c5b9-400b-8135-9f7137d0452f